fUSD/lending_fUSD_20251123
["ID","MTS","AMOUNT","RATE_DAILY","PERIOD"]
[394780608,1763940646706,-150.0,0.00040958,2]
[394780609,1763940646715,-1040.0,0.00040958,2]
[394780610,1763940646724,-500.0,0.00040958,2]
[394780611,1763940646733,-150.0,0.00040958,2]
[394780612,1763940646742,-150.0,0.00040958,2]
[394780613,1763940646751,-150.0,0.00040958,2]
[394780614,1763940646760,-150.0,0.00040958,2]
[394780615,1763940646769,-200.0,0.00040958,2]
[394780616,1763940646779,-200.0,0.00040958,2]
[394780617,1763940646788,-200.0,0.00040958,2]
[394780619,1763940646797,-150.0,0.00040958,2]
[394780620,1763940646806,-150.0,0.00040958,2]
[394780622,1763940646816,-150.0,0.00040958,2]
[394780623,1763940646825,-202.06295991,0.00040958,2]
[394780626,1763940646834,-150.0,0.00040958,2]
[394780627,1763940646843,-150.0,0.00040958,2]
[394780630,1763940646852,-1100.0,0.00040959,3]
[394780631,1763940646861,-1100.0,0.00040959,2]
[394780633,1763940646870,-1100.0,0.00040959,2]
[394780635,1763940646879,-1100.0,0.00040959,3]
[394780637,1763940646888,-19179.2860391,0.00040993,2]
[394780639,1763940646897,-595.37131297,0.00040997,30]
[394780641,1763940646906,-500.0,0.00040997,30]
[394780643,1763940646915,-500.0,0.00040997,30]
[394780645,1763940646924,-1500.0,0.00040997,30]
[394780647,1763940646933,-277.35679052,0.00040997,30]
[394780649,1763940646942,-500.0,0.00040997,30]
[394780651,1763940646952,-500.0,0.00040997,2]
[394780653,1763940646961,-1000.0,0.00040997,3]
[394780655,1763940646971,-151.0,0.00040997,120]
[394780657,1763940646979,-155.065682,0.00040997,120]
[394780659,1763940646989,-151.0,0.00040997,120]
[394780661,1763940646997,-153.146226,0.00040997,120]
[394780663,1763940647007,-151.0,0.00040997,120]
[394780665,1763940647016,-151.0,0.00040997,120]
[394780667,1763940647026,-151.0,0.00040997,60]
[394780669,1763940647036,-151.0,0.00040997,120]
[394780671,1763940647044,-151.0,0.00040997,120]
[394780673,1763940647055,-151.0,0.00040997,120]
[394780675,1763940647065,-242.864711,0.00040997,120]
[394780677,1763940647074,-242.864711,0.00040997,120]
[394780680,1763940647084,-242.864711,0.00040997,120]
[394780681,1763940647093,-242.864711,0.00040997,120]
[394780683,1763940647101,-151.0,0.00040997,120]
[394780685,1763940647110,-151.0,0.00040997,120]
[394780687,1763940647120,-151.0,0.00040997,120]
[394780689,1763940647128,-227.514157,0.00040997,30]
[394780691,1763940647138,-227.514157,0.00040997,30]
[394780693,1763940647147,-227.514157,0.00040997,30]
[394780695,1763940647156,-151.0,0.00040997,120]
[394780697,1763940647166,-227.514157,0.00040997,30]
[394780699,1763940647175,-153.85917,0.00040997,7]
[394780701,1763940647184,-151.0,0.00040997,120]
[394780703,1763940647194,-151.0,0.00040997,120]
[394780705,1763940647203,-1000.0,0.00040998,120]
[394780707,1763940647212,-445.202766,0.00040998,30]
[394780709,1763940647221,-5000.0,0.00040998,30]
[394780711,1763940647229,-500.0,0.00040998,30]
[394780713,1763940647238,-537.6845,0.00040998,30]
[394780715,1763940647248,-461.67526834,0.00040998,31]
[394780717,1763940647257,-5000.0,0.00040998,31]
[394780720,1763940647267,-500.0,0.00040998,31]
[394780722,1763940647276,-557.5788265,0.00040998,31]
[394780724,1763940647285,-478.75725327,0.00040998,41]
[394780726,1763940647294,-500.0,0.00040998,41]
[394780727,1763940647303,-5000.0,0.00040998,41]
[394780729,1763940647312,-250.0,0.00040998,30]
[394780730,1763940647321,-500.0,0.00040998,30]
[394780731,1763940647331,-250.0,0.00040998,30]
[394780732,1763940647340,-250.0,0.00040998,31]
[394780733,1763940647349,-500.0,0.00040998,31]
[394780734,1763940647358,-250.0,0.00040998,31]
[394780735,1763940647368,-276.4808023,0.00040998,41]
[394780736,1763940647380,-500.0,0.00040998,41]
[394780737,1763940647391,-250.0,0.00040998,41]
[394780738,1763940647401,-1500.0,0.00040998,30]
[394780739,1763940647411,-1500.0,0.00040998,31]
[394780740,1763940647420,-600.0,0.00040998,30]
[394780741,1763940647430,-1500.0,0.00040998,41]
[394780742,1763940647440,-600.0,0.00040998,31]
[394780743,1763940647450,-600.0,0.00040998,41]
[394780744,1763940647460,-151.0,0.00040998,30]
[394780745,1763940647469,-500.0,0.00040998,30]
[394780746,1763940647478,-157.8410325,0.00040998,30]
[394780747,1763940647488,-151.0,0.00040998,31]
[394780748,1763940647497,-250.0,0.00040998,30]
[394780749,1763940647507,-500.0,0.00040998,31]
[394780750,1763940647517,-151.0,0.00040998,41]
[394780751,1763940647526,-250.0,0.00040998,31]
[394780752,1763940647535,-500.0,0.00040998,41]
[394780753,1763940647544,-250.0,0.00040998,41]
[394780754,1763940647553,-250.0,0.00040998,30]
[394780755,1763940647562,-250.0,0.00040998,31]
[394780756,1763940647572,-200.0,0.00040998,30]
[394780757,1763940647580,-250.0,0.00040998,41]
[394780758,1763940647590,-250.0,0.00040998,30]
[394780759,1763940647599,-250.0,0.00040998,31]
[394780760,1763940647608,-250.0,0.00040998,41]
[394780761,1763940647617,-370.98335745,0.00040998,30]
[394780762,1763940647626,-559.19188,0.00040998,30]
[394780763,1763940647635,-579.88197956,0.00040998,31]
[394780764,1763940647644,-601.33761281,0.00040998,41]
[394780765,1763940647653,-500.0,0.00040998,30]
[394780766,1763940647663,-500.0,0.00040998,31]
[394780767,1763940647672,-500.0,0.00040998,41]
[394780768,1763940647681,-500.0,0.00040998,30]
[394780769,1763940647690,-500.0,0.00040998,31]
[394780770,1763940647699,-500.0,0.00040998,30]
[394780771,1763940647708,-500.0,0.00040998,41]
[394780772,1763940647716,-500.0,0.00040998,31]
[394780773,1763940647725,-500.0,0.00040998,41]
[394780774,1763940647735,-1000.0,0.00040998,3]
[394780775,1763940647743,-1000.0,0.00040998,3]
[394780776,1763940647752,-1000.0,0.00040998,3]
[394780777,1763940647762,-1000.0,0.00040998,3]
[394780778,1763940647772,-1000.0,0.00040998,3]
[394780779,1763940647781,-4694.2205664,0.00040999,2]
[394780780,1763940647790,-414.0,0.00040999,31]
[394780781,1763940647799,-5000.0,0.00040999,31]
[394780782,1763940647808,-500.0,0.00040999,31]
[394780783,1763940647817,-500.0,0.00040999,31]
[394780784,1763940647826,-429.318,0.00040999,41]
[394780785,1763940647835,-5000.0,0.00040999,41]
[394780786,1763940647844,-500.0,0.00040999,41]
[394780787,1763940647853,-518.5,0.00040999,41]
[394780788,1763940647863,-250.0,0.00040999,31]
[394780789,1763940647872,-500.0,0.00040999,31]
[394780790,1763940647881,-250.0,0.00040999,31]
[394780791,1763940647890,-151.0,0.00040999,31]
[394780792,1763940647900,-250.0,0.00040999,41]
[394780793,1763940647909,-2500.0,0.00040999,21]
[394780794,1763940647919,-500.0,0.00040999,41]
[394780795,1763940647928,-250.0,0.00040999,41]
[394780796,1763940647937,-151.68414985,0.00040999,31]
[394780797,1763940647947,-500.0,0.00040999,21]
[394780798,1763940647956,-300.0,0.00040999,31]
[394780799,1763940647965,-1500.0,0.00040999,31]
[394780800,1763940647975,-500.0,0.00040999,21]
[394780801,1763940647984,-311.1,0.00040999,41]
[394780802,1763940647994,-1500.0,0.00040999,41]
[394780803,1763940648003,-600.0,0.00040999,31]
[394780804,1763940648013,-445.6372341,0.00040999,21]
[394780805,1763940648024,-500.0,0.00040999,21]
[394780806,1763940648035,-600.0,0.00040999,41]
[394780807,1763940648044,-500.0,0.00040999,21]
[394780808,1763940648053,-500.0,0.00040999,21]
[394780809,1763940648064,-500.0,0.00040999,21]
[394780810,1763940648075,-200.0,0.00040999,21]
[394780811,1763940648085,-620.0,0.00040999,21]
[394780812,1763940648094,-500.0,0.00040999,21]
[394780813,1763940648104,-500.0,0.00040999,21]
[394780814,1763940648115,-151.0,0.00040999,31]
[394780815,1763940648125,-642.94,0.00040999,21]
[394780816,1763940648136,-500.0,0.00040999,21]
[394780817,1763940648150,-500.0,0.00040999,21]
[394780819,1763940648160,-500.0,0.00040999,31]
[394780821,1763940648169,-151.0,0.00040999,31]
[394780823,1763940648178,-151.0,0.00040999,41]
[394780824,1763940648187,-250.0,0.00040999,31]
[394780825,1763940648196,-500.0,0.00040999,21]
[394780826,1763940648206,-500.0,0.00040999,21]
[394780827,1763940648215,-500.0,0.00040999,41]
[394780828,1763940648224,-151.0,0.00040999,41]
[394780829,1763940648234,-250.0,0.00040999,41]
[394780830,1763940648243,-500.0,0.00040999,21]
[394780831,1763940648252,-500.0,0.00040999,21]
[394780832,1763940648264,-1000.0,0.00040999,21]
[394780833,1763940648273,-500.0,0.00040999,21]
[394780834,1763940648283,-500.0,0.00040999,21]
[394780835,1763940648292,-500.0,0.00040999,21]
[394780836,1763940648302,-500.0,0.00040999,21]
[394780837,1763940648312,-250.0,0.00040999,31]
[394780838,1763940648321,-500.0,0.00040999,21]
[394780839,1763940648331,-500.0,0.00040999,21]
[394780840,1763940648341,-250.0,0.00040999,41]
[394780841,1763940648351,-500.0,0.00040999,21]
[394780842,1763940648359,-500.0,0.00040999,21]
[394780843,1763940648369,-250.0,0.00040999,31]
[394780844,1763940648380,-500.0,0.00040999,21]
[394780845,1763940648390,-250.0,0.00040999,41]
[394780846,1763940648399,-500.0,0.00040999,21]
[394780847,1763940648408,-220.0,0.00040999,31]
[394780848,1763940648419,-220.0,0.00040999,41]
[394780849,1763940648428,-520.0,0.00040999,31]
[394780850,1763940648437,-539.24,0.00040999,41]
[394780851,1763940648446,-500.0,0.00040999,31]
[394780852,1763940648456,-500.0,0.00040999,41]
[394780853,1763940648465,-500.0,0.00040999,31]
[394780854,1763940648474,-500.0,0.00040999,41]
[394780855,1763940648483,-500.0,0.00040999,31]
[394780856,1763940648493,-500.0,0.00040999,41]
[394780857,1763940648502,-500.0,0.00040999,21]
[394780858,1763940648512,-500.0,0.00040999,21]
[394780859,1763940648521,-500.0,0.00040999,21]
[394780860,1763940648530,-500.0,0.00040999,21]
[394780861,1763940648540,-500.0,0.00040999,21]
[394780862,1763940648549,-500.0,0.00040999,21]
[394780863,1763940648558,-500.0,0.00040999,21]
[394780864,1763940648568,-599.44663334,0.00040999,21]
[394780865,1763940648577,-500.0,0.00040999,21]
[394780866,1763940648586,-500.0,0.00040999,21]
[394780867,1763940648596,-500.0,0.00040999,2]
[394780868,1763940648605,-151.0,0.00040999,120]
[394780869,1763940648614,-500.0,0.00040999,2]
[394780870,1763940648623,-500.0,0.00040999,2]
[394780871,1763940648632,-500.0,0.00040999,2]
[394780872,1763940648642,-151.0,0.00040999,120]
[394780873,1763940648651,-151.0,0.00040999,120]
[394780874,1763940648660,-151.0,0.00040999,15]
[394780875,1763940648669,-154.065466,0.00040999,120]
[394780876,1763940648678,-151.0,0.00040999,15]
[394780877,1763940648688,-151.0,0.00040999,30]
[394780878,1763940648698,-151.0,0.00040999,15]
[394780879,1763940648707,-177.767566,0.00040999,120]
[394780880,1763940648717,-151.0,0.00040999,120]
[394780881,1763940648726,-151.0,0.00040999,120]
[394780882,1763940648736,-177.767566,0.00040999,120]
[394780883,1763940648746,-151.0,0.00040999,120]
[394780884,1763940648756,-177.767566,0.00040999,120]
[394780885,1763940648765,-151.0,0.00040999,120]
[394780886,1763940648775,-177.767566,0.00040999,120]
[394780887,1763940648785,-242.481553,0.00040999,120]
[394780888,1763940648794,-242.481553,0.00040999,120]
[394780889,1763940648804,-151.0,0.00040999,120]
[394780890,1763940648814,-152.684753,0.00040999,120]
[394780891,1763940648825,-242.481553,0.00040999,120]
[394780892,1763940648834,-242.481553,0.00040999,120]
[394780893,1763940648844,-1000.0,0.00040999,2]
[394780894,1763940648853,-1000.0,0.00040999,3]
[394780895,1763940648862,-151.0,0.00040999,120]
[394780896,1763940648872,-151.0,0.00040999,120]
[394780897,1763940648881,-232.981913,0.00040999,120]
[394780898,1763940648890,-232.981913,0.00040999,120]
[394780899,1763940648900,-232.981913,0.00040999,120]
[394780900,1763940648910,-232.981913,0.00040999,120]
[394780901,1763940648919,-151.0,0.00040999,120]
[394780902,1763940648929,-151.895134,0.00040999,120]
[394780903,1763940648938,-156.425271,0.00040999,120]
[394780904,1763940648947,-151.0,0.00040999,120]
[394780905,1763940648956,-153.363338,0.00040999,120]
[394780906,1763940648966,-225.933366,0.00040999,60]
[394780907,1763940648975,-151.0,0.00040999,120]
[394780908,1763940648984,-240.630098,0.00040999,120]
[394780909,1763940648994,-8105.87496296,0.00041,21]
[394780910,1763940649003,-1066031.95837698,0.00041,2]
[394780911,1763940649144,-2389.61592721,0.00041,2]
[394780912,1763940649155,-482.40986057,0.00041,2]
[394780913,1763940649166,-278.12543546,0.00041,2]
[394780914,1763940649177,-2049.98773883,0.00041,2]
[394780915,1763940649188,-384.71827575,0.00041,2]
[394780916,1763940649199,-302.80081336,0.00041,2]
[394780917,1763940649237,-489.64607935,0.00038356,8]
[394780918,1763940649249,-10.35392065,0.00038356,8]
[394780919,1763940649259,-177.6,0.00040877,2]
[394780920,1763940649268,-210.60529971,0.00041,2]
[394780921,1763940649290,-251.86860509,0.00041,2]
[394780922,1763940649313,-517.23784014,0.00026399,2]
[394780923,1763940649322,-5000.0,0.00038227,30]
[394780924,1763940649332,-13378.05256349,0.00041,2]
[394780925,1763940649343,-796.7384895,0.00041,2]
[394780926,1763940649358,-500.0,0.0003863,8]
[394780927,1763940649367,-333.25016943,0.00041,2]
[394780928,1763940649381,-4479.94498079,0.00041,2]
[394780929,1763940649394,-13958.95521815,0.00041,2]
[394780930,1763940649405,-23700.00383211,0.00041,2]
[394780931,1763940649423,-279.468,0.00041,2]
[394780932,1763940649440,-703.14946716,0.00041,2]
[394780933,1763940649459,-7411.64607215,0.00041,2]
[394780934,1763940649471,-3142.38438997,0.00041,2]
[394780935,1763940649499,-3475.7947447,0.00041,2]
[394780968,1763941831569,-181.60109685,0.00021899,2]
[394780969,1763941831579,-223.29039915,0.00021998,2]
[394780970,1763941831590,-446.28573762,0.00021998,2]
[394780971,1763941831600,-317.96,0.00021998,2]
[394780972,1763941831612,-212.46386323,0.00021998,2]
[394780973,1763941831621,-1200.0,0.00021998,2]
[394780974,1763941831631,-300.0,0.00021998,2]
[394780975,1763941831640,-300.0,0.00021998,2]
[394780976,1763941831649,-300.0,0.00021999,2]
[394780977,1763941831658,-9752.34068677,0.00022,2]
[394780978,1763941831731,-469.0716022,0.00022,2]
[394780979,1763941831742,-11514.88422666,0.00022,2]
[394780980,1763941831753,-1730.2071331,0.00022,2]
[394780981,1763941831881,-6378.37033482,0.00022,2]
[394780995,1763941838120,-573.43268544,0.00022,2]
[394780996,1763941838130,-300.0,0.00023906,2]
[394780997,1763941838140,-424.58718741,0.00026199,2]
[394780998,1763941838278,-75.41281259,0.00026199,2]
[394781000,1763941838288,-426.78462315,0.00026247,2]
[394781003,1763941838298,-500.0,0.00026399,2]
[394781004,1763941838307,-156.67488001,0.00026399,2]
[394781007,1763941838316,-500.0,0.00026399,2]
[394781008,1763941838326,-250.0,0.00028936,2]
[394781010,1763941838335,-163.58743874,0.00029266,2]
[394781053,1763941839724,-5.14256126,0.00029266,2]
[394781054,1763941839735,-195.20060545,0.00030423,2]
[394781055,1763941839744,-150.0,0.00032,120]
[394781056,1763941839754,-5146.81,0.00033584,2]
[394781057,1763941839763,-550.0,0.00034356,2]
[394781058,1763941839775,-1791.44,0.00034357,38]
[394781059,1763941839784,-170.159,0.00034357,38]
[394781060,1763941839794,-150.0,0.00034722,2]
[394781061,1763941839803,-1000.0,0.00034934,2]
[394781062,1763941839813,-163.0,0.00035,4]
[394781063,1763941839822,-150.0,0.00035,120]
[394781064,1763941839831,-159.02,0.00035072,2]
[394781065,1763941839840,-4138.89,0.00035108,2]
[394781066,1763941839851,-150.0,0.00035532,2]
[394781067,1763941839860,-150.0,0.00035532,120]
[394781068,1763941839869,-250.0,0.0003575,2]
[394781069,1763941839879,-500.0,0.00035897,8]
[394781070,1763941839888,-155.87,0.0003607,30]
[394781071,1763941839897,-500.0,0.00036308,5]
[394781072,1763941839907,-710.48,0.00036786,2]
[394781073,1763941839916,-280.2131,0.00036888,7]
[394781074,1763941839925,-150.0,0.00036951,2]
[394781075,1763941839934,-159.02,0.00037264,2]
[394781076,1763941839944,-177.06,0.00037317,2]
[394781077,1763941839954,-153.0,0.00037625,2]
[394781078,1763941839963,-500.0,0.00037808,120]
[394781079,1763941839974,-2500.0,0.000379,2]
[394781080,1763941839983,-983.72427363,0.00037914,2]
[394781081,1763941839992,-501.83220952,0.00037973,5]
[394781082,1763941840001,-500.0,0.00037973,3]
[394781083,1763941840011,-200.7144154,0.00037973,5]
[394781084,1763941840020,-500.0,0.00037999,7]
[394781085,1763941840029,-500.0,0.00037999,2]
[394781086,1763941840038,-500.0,0.00037999,15]
[394781087,1763941840048,-500.0,0.00037999,15]
[394781089,1763941840057,-268.56892769,0.00037999,7]
[394781091,1763941840066,-500.0,0.00037999,2]
[394781093,1763941840075,-513.65924063,0.00037999,2]
[394781095,1763941840084,-500.0,0.00037999,15]
[394781097,1763941840093,-260.30625245,0.00037999,15]
[394781099,1763941840102,-500.0,0.00037999,15]
[394781100,1763941840112,-289.97436894,0.00037999,2]
[394781101,1763941840122,-500.0,0.00037999,15]
[394781102,1763941840131,-500.0,0.00037999,2]
[394781103,1763941840141,-500.0,0.00037999,15]
[394781104,1763941840150,-500.0,0.00037999,15]
[394781105,1763941840159,-500.0,0.00037999,15]
[394781106,1763941840169,-500.0,0.00037999,15]
[394781107,1763941840178,-500.0,0.00037999,15]
[394781108,1763941840188,-500.0,0.00037999,15]
[394781109,1763941840201,-500.0,0.00037999,15]
[394781110,1763941840211,-500.0,0.00037999,15]
[394781111,1763941840219,-500.0,0.00037999,15]
[394781112,1763941840229,-500.0,0.00037999,15]
[394781113,1763941840238,-280.57449888,0.00037999,15]
[394781114,1763941840247,-500.0,0.00037999,15]
[394781115,1763941840257,-500.0,0.00037999,15]
[394781116,1763941840266,-169.0,0.00038,120]
[394781117,1763941840275,-259587.1,0.00038,3]
[394781118,1763941840284,-155.29416619,0.00038014,2]
[394781119,1763941840293,-7570.07901395,0.00038017,2]
[394781120,1763941840303,-163.01368275,0.00038017,15]
[394781121,1763941840312,-15511.22996278,0.00038114,30]
[394781122,1763941840321,-60921.9283,0.00038117,2]
[394781123,1763941840331,-500.83480133,0.00038216,8]
[394781124,1763941840340,-500.0,0.00038216,8]
[394781125,1763941840349,-500.0,0.00038216,8]
[394781126,1763941840358,-500.0,0.00038216,8]
[394781127,1763941840573,-500.0,0.00038216,8]
[394781128,1763941840584,-500.0,0.00038216,7]
[394781129,1763941840595,-500.0,0.00038216,7]
[394781130,1763941840605,-597.56,0.00038216,7]
[394781131,1763941840615,-500.0,0.00038216,8]
[394781132,1763941840625,-500.0,0.00038216,8]
[394781133,1763941840635,-500.0,0.00038216,8]
[394781134,1763941840644,-500.0,0.00038216,8]
[394781135,1763941840653,-500.0,0.00038216,8]
[394781136,1763941840662,-500.0,0.00038216,8]
[394781137,1763941840671,-549.40673751,0.00038216,8]
[394781138,1763941840682,-500.0,0.00038216,8]
[394781139,1763941840691,-500.0,0.00038216,8]
[394781140,1763941840700,-259.65900185,0.00038216,8]
[394781141,1763941840709,-500.0,0.00038216,8]
[394781142,1763941840719,-500.0,0.00038216,8]
[394781143,1763941840728,-500.0,0.00038216,8]
[394781144,1763941840738,-500.0,0.00038216,8]
[394781145,1763941840747,-442.86671244,0.00038216,8]
[394781146,1763941840756,-500.0,0.00038216,2]
[394781147,1763941840766,-500.0,0.00038216,2]
[394781148,1763941840779,-500.0,0.00038216,2]
[394781149,1763941840788,-199.0,0.00038216,7]
[394781150,1763941840798,-983.72427357,0.00038246,2]
[394781151,1763941840807,-5000.0,0.00038256,30]
[394781152,1763941840817,-168.51329713,0.00038256,11]
[394781153,1763941840826,-307.30941483,0.00038256,2]
[394781154,1763941840835,-500.0,0.00038273,5]
[394781155,1763941840845,-500.0,0.00038316,8]
[394781156,1763941840855,-7570.07901391,0.00038337,2]
[394781157,1763941840864,-151.0,0.00038353,14]
[394781158,1763941840874,-500.0,0.00038355,8]
[394781159,1763941840883,-522.80951758,0.00038355,8]
[394781160,1763941840893,-512.60984382,0.00038355,8]
[394781161,1763941840902,-500.0,0.00038355,8]
[394781162,1763941840911,-500.0,0.00038355,2]
[394781163,1763941840920,-284.2245269,0.00038355,15]
[394781164,1763941840929,-289.82220497,0.00038355,15]
[394781165,1763941840939,-500.0,0.00038355,15]
[394781166,1763941840947,-592.11631431,0.00038355,15]
[394781167,1763941840957,-500.0,0.00038355,15]
[394781168,1763941840966,-500.0,0.00038356,8]
[394781169,1763941840976,-500.0,0.00038356,8]
[394781170,1763941840985,-500.0,0.00038356,8]
[394781171,1763941840995,-500.0,0.00038356,8]
[394781172,1763941841004,-500.0,0.00038356,8]
[394781173,1763941841013,-500.0,0.00038356,8]
[394781174,1763941841022,-500.0,0.00038356,8]
[394781175,1763941841031,-500.0,0.00038356,8]
[394781176,1763941841044,-500.0,0.00038356,8]
[394781177,1763941841054,-500.0,0.00038356,8]
[394781178,1763941841063,-500.0,0.00038356,8]
[394781179,1763941841072,-500.0,0.00038356,8]
[394781180,1763941841082,-500.0,0.00038356,8]
[394781181,1763941841091,-500.0,0.00038356,8]
[394781182,1763941841101,-500.0,0.00038356,8]
[394781183,1763941841110,-500.0,0.00038356,8]
[394781184,1763941841119,-500.0,0.00038356,8]
[394781185,1763941841129,-500.0,0.00038356,8]
[394781186,1763941841138,-167.586562,0.00038356,8]
[394781187,1763941841147,-500.0,0.00038356,8]
[394781188,1763941841157,-500.0,0.00038356,8]
[394781189,1763941841166,-500.0,0.00038356,2]
[394781190,1763941841175,-500.0,0.00038356,8]
[394781191,1763941841185,-407.704128,0.00038356,8]
[394781192,1763941841194,-500.0,0.00038356,8]
[394781193,1763941841204,-404.88567991,0.00038356,8]
[394781194,1763941841213,-160.962503,0.00038356,8]
[394781195,1763941841222,-502.278428,0.00038356,8]
[394781196,1763941841231,-500.0,0.00038356,8]
[394781197,1763941841240,-500.0,0.00038356,8]
[394781198,1763941841249,-500.0,0.00038356,8]
[394781199,1763941841259,-500.0,0.00038356,8]
[394781200,1763941841268,-500.0,0.00038356,8]
[394781201,1763941841278,-500.0,0.00038356,8]
[394781202,1763941841288,-500.0,0.00038356,8]
[394781203,1763941841297,-500.0,0.00038356,8]
[394781204,1763941841306,-500.0,0.00038356,8]
[394781205,1763941841316,-500.0,0.00038356,8]
[394781206,1763941841326,-373.26114123,0.00038356,8]
[394781207,1763941841335,-500.0,0.00038356,8]
[394781208,1763941841344,-500.0,0.00038356,8]
[394781209,1763941841354,-500.0,0.00038356,8]
[394781210,1763941841363,-500.0,0.00038356,8]
[394781211,1763941841372,-500.0,0.00038356,8]
[394781212,1763941841382,-500.0,0.00038356,8]
[394781213,1763941841391,-589.81712656,0.00038356,8]
[394781214,1763941841400,-500.0,0.00038356,8]
[394781215,1763941841409,-500.0,0.00038356,8]
[394781216,1763941841419,-500.0,0.00038356,8]
[394781217,1763941841432,-500.0,0.00038356,8]
[394781218,1763941841442,-500.0,0.00038356,8]
[394781219,1763941841452,-500.51007127,0.00038356,8]
[394781220,1763941841462,-500.0,0.00038356,8]
[394781221,1763941841471,-500.0,0.00038356,8]
[394781222,1763941841481,-500.0,0.00038356,8]
[394781223,1763941841491,-500.0,0.00038356,8]
[394781224,1763941841500,-500.0,0.00038356,8]
[394781225,1763941841510,-500.0,0.00038356,8]
[394781226,1763941841520,-504.57075564,0.00038356,8]
[394781227,1763941841529,-500.0,0.00038356,8]
[394781228,1763941841540,-500.0,0.00038356,8]
[394781229,1763941841549,-503.02381469,0.00038356,8]
[394781230,1763941841559,-506.57596285,0.00038356,8]
[394781231,1763941841568,-206.93778354,0.00038356,8]
[394781232,1763941841578,-500.0,0.00038356,8]
[394781233,1763941841587,-500.0,0.00038356,8]
[394781234,1763941841597,-500.0,0.00038356,8]
[394781235,1763941841606,-432.12746951,0.00038356,8]
[394781236,1763941841615,-500.0,0.00038356,7]
[394781237,1763941841624,-500.0,0.00038356,8]
[394781238,1763941841633,-500.0,0.00038356,8]
[394781239,1763941841643,-500.0,0.00038356,8]
[394781240,1763941841651,-524.0776506,0.00038356,8]
[394781241,1763941841660,-500.0,0.00038356,8]
[394781242,1763941841670,-529.94583998,0.00038356,8]
[394781243,1763941841679,-505.65429913,0.00038356,8]
[394781244,1763941841688,-500.0,0.00038356,8]
[394781245,1763941841697,-500.0,0.00038356,8]
[394781246,1763941841706,-500.0,0.00038356,8]
[394781247,1763941841715,-504.65964041,0.00038356,8]
[394781248,1763941841724,-500.0,0.00038356,8]
[394781249,1763941841734,-500.0,0.00038356,8]
[394781250,1763941841743,-510.46366579,0.00038356,8]
[394781251,1763941841752,-500.0,0.00038356,7]
[394781252,1763941841761,-500.0,0.00038356,8]
[394781253,1763941841771,-500.0,0.00038356,8]
[394781254,1763941841782,-500.0,0.00038356,8]
[394781255,1763941841791,-500.0,0.00038356,8]
[394781256,1763941841799,-500.0,0.00038356,8]
[394781257,1763941841808,-500.0,0.00038356,8]
[394781258,1763941841821,-500.0,0.00038356,8]
[394781259,1763941841830,-500.0,0.00038356,8]
[394781260,1763941841839,-500.0,0.00038356,8]
[394781261,1763941841850,-500.0,0.00038356,8]
[394781262,1763941841859,-500.0,0.00038356,8]
[394781263,1763941841868,-500.0,0.00038356,8]
[394781264,1763941841877,-500.0,0.00038356,8]